bitfinex/quotes_SOLUSD_20251002
["timestamp","ask_amount","ask_price","bid_price","bid_amount"]
[1759420986609,0.69,227.57,227.51,10.87647521]
[1759420986818,0.69,227.57,227.51,42.13647521]
[1759420987112,0.69,227.56,227.52,4.395218]
[1759420987312,0.69,227.55,227.51,15.27182971]
[1759420987516,0.69,227.54,227.51,15.27182971]
[1759420987818,0.69,227.53,227.51,26.26035768]
[1759420988317,0.69,227.55,227.51,26.26035768]
[1759420988498,0.69,227.57,227.51,26.26035768]
[1759420989007,0.69,227.56,227.51,57.52035768]
[1759420989210,0.69,227.55,227.51,26.26035768]
[1759420989405,0.69,227.54,227.51,26.26035768]
[1759420989607,400.0,227.58,227.51,26.26035768]
[1759420989608,400.0,227.58,227.55,31.67647521]
[1759420990201,400.0,227.58,227.57,10.87647521]
[1759420991127,400.0,227.58,227.57,15.27072752]
[1759420991309,400.0,227.58,227.57,29.21328654]
[1759420991919,376.69835678,227.58,227.57,29.21328654]
[1759420992223,327.68922974,227.58,227.57,29.21328654]
[1759420992418,276.18739602,227.58,227.57,29.21328654]
[1759420992626,171.66175633,227.58,227.57,29.21328654]
[1759420992805,74.14641321,227.58,227.57,29.21328654]
[1759420993002,5.23646135,227.58,227.57,29.21328654]
[1759420993199,0.1,227.64,227.63,31.67647521]
[1759420993516,0.1,227.64,227.63,62.97647521]
[1759420994216,0.79,227.64,227.63,62.97647521]
[1759420994413,0.79,227.64,227.63,62.95647521]
[1759420994621,0.79,227.64,227.57,29.32244212]
[1759420994820,0.69,227.63,227.58,42.17647521]
[1759420995012,0.69,227.62,227.6,10.87647521]
[1759420995214,0.69,227.61,227.6,10.87647521]
[1759420995417,0.1,227.64,227.62,20.8]
[1759420995626,0.1,227.64,227.6,10.87647521]
[1759420995933,0.1,227.64,227.62,20.8]
[1759420996142,0.69,227.63,227.58,10.87647521]
[1759420996313,0.69,227.62,227.58,10.87647521]
[1759420996506,0.69,227.61,227.58,42.17647521]
[1759420996814,0.1,227.64,227.58,10.87647521]
[1759420997199,0.69,227.63,227.58,10.87647521]
[1759420997405,0.69,227.62,227.58,15.27052019]
[1759420997605,0.1,227.64,227.57,0.5]
[1759420997606,0.69,227.61,227.57,0.5]
[1759420998913,0.1,227.64,227.58,25.19405923]
[1759420999121,0.1,227.64,227.58,20.8]
[1759420999122,0.69,227.6,227.58,20.8]
[1759420999322,0.69,227.59,227.58,20.8]
[1759421000015,0.69,227.59,227.57,0.5]
[1759421000225,0.69,227.58,227.57,21.3]
[1759421000423,0.69,227.6,227.58,20.8]
[1759421000725,0.69,227.59,227.58,20.8]
[1759421001208,0.69,227.59,227.58,25.19405923]
[1759421001831,0.69,227.59,227.58,20.8]
[1759421002226,0.69,227.59,227.58,25.19405923]
[1759421002439,0.69,227.62,227.58,25.19405923]
[1759421002615,0.69,227.61,227.58,25.19405923]
[1759421002812,0.69,227.63,227.58,4.39405923]
[1759421003130,0.1,227.64,227.59,10.87647521]
[1759421003340,0.1,227.64,227.6,4.39367311]
[1759421003508,0.77,227.64,227.6,4.39367311]
[1759421003710,0.77,227.64,227.62,20.8]
[1759421004129,0.67,227.63,227.62,20.8]
[1759421004636,0.1,227.64,227.63,31.67647521]
[1759421004928,0.1,227.64,227.63,20.8]
[1759421005333,0.1,227.64,227.63,25.19309405]
[1759421005517,0.77,227.64,227.63,20.8]
[1759421006220,0.07333613,227.67,227.64,10.87647521]
[1759421006430,1e-08,227.71,227.7,20.8]
[1759421006640,1e-08,227.71,227.7,31.67647521]
[1759421007150,1e-08,227.71,227.7,63.09647521]
[1759421007316,1e-08,227.71,227.7,36.06821873]
[1759421007949,0.67000001,227.71,227.69,42.29647521]
[1759421008123,0.67000001,227.71,227.69,10.87647521]
[1759421008309,1e-08,227.71,227.69,10.87647521]
[1759421009138,0.67,227.7,227.69,20.8]
[1759421009358,0.67,227.7,227.61,31.4]
[1759421009542,0.67,227.69,227.64,20.8]
[1759421009742,1e-08,227.71,227.65,10.87647521]
[1759421009943,1e-08,227.71,227.68,20.8]
[1759421010444,0.67,227.7,227.68,20.8]
[1759421010649,0.67,227.69,227.68,20.8]
[1759421010853,0.67,227.69,227.66,20.8]
[1759421011042,0.67,227.68,227.66,20.8]
[1759421011442,0.69,227.67,227.66,20.8]
[1759421011645,1e-08,227.71,227.66,25.19250748]
[1759421011646,0.69000001,227.71,227.66,25.19250748]
[1759421011941,0.69,227.7,227.66,25.19250748]
[1759421012137,0.69,227.7,227.68,20.8]
[1759421012358,1e-08,227.71,227.68,20.8]
[1759421013270,0.69000001,227.71,227.68,20.8]
[1759421013579,0.69000001,227.71,227.7,10.87647521]
[1759421013580,1e-08,227.71,227.7,10.87647521]
[1759421014760,1e-08,227.71,227.7,42.27647521]
[1759421015261,1e-08,227.71,227.7,48.74164773]
[1759421015464,1e-08,227.71,227.7,48.30247338]
[1759421016950,1e-08,227.71,227.7,48.42247338]
[1759421017153,1e-08,227.71,227.7,10.87647521]
[1759421017379,1e-08,227.71,227.7,42.41647521]
[1759421018677,1e-08,227.71,227.7,46.80821873]
[1759421020786,1e-08,227.74,227.7,63.8135757]
[1759421020994,1e-08,227.74,227.73,51.67647521]
[1759421021146,5.0,227.8,227.78,10.87647521]
[1759421021471,5.0,227.8,227.79,46.78648355]
[1759421021648,5.0,227.8,227.79,10.87647521]
[1759421021852,5.0,227.8,227.79,42.39647521]
[1759421022052,5.69,227.8,227.79,10.87647521]
[1759421022291,5.0,227.8,227.79,10.87647521]
[1759421023650,5.69,227.8,227.79,10.87647521]
[1759421023844,5.0,227.8,227.79,10.87647521]
[1759421024448,5.0,227.8,227.79,42.39647521]
[1759421024449,2.70759547,227.8,227.79,42.39647521]
[1759421026657,2.70759547,227.8,227.79,45.10407068]
[1759421026870,2.70759547,227.8,227.79,13.58407068]
[1759421027187,2.70759547,227.8,227.79,45.08407068]
[1759421028960,2.70759547,227.8,227.79,45.22623225]
[1759421029986,2.70759547,227.8,227.79,57.51784391]
[1759421030155,2.70759547,227.8,227.79,61.90785225]
[1759421030867,1e-08,227.8,227.79,49.61624059]
[1759421031077,1e-08,227.8,227.79,61.90785225]
[1759421031784,0.79,227.87,227.84,0.14216157]
[1759421031983,0.79,227.87,227.86,0.14216157]
[1759421032393,0.1,227.87,227.86,11.01863678]
[1759421032792,0.1,227.87,227.86,17.04463495]
[1759421032992,0.1,227.87,227.86,23.31024844]
[1759421033210,0.79,227.87,227.86,54.77024844]
[1759421033507,0.79,227.87,227.86,42.47863678]
[1759421033712,0.79,227.87,227.86,15.40729648]
[1759421033897,0.79,227.87,227.86,42.49863678]
[1759421034096,0.79,227.87,227.86,11.01863678]
[1759421034395,0.79,227.87,227.86,46.88729648]
[1759421034583,0.1,227.87,227.86,46.88729648]
[1759421034991,0.79,227.87,227.86,11.01863678]
[1759421035204,0.79,227.87,227.86,42.47863678]
[1759421035408,0.79,227.87,227.86,46.86729648]
[1759421035604,0.79,227.87,227.83,4.38694463]
[1759421035807,0.69,227.86,227.81,6.02599817]
[1759421036022,0.69,227.86,227.77,10.96702937]
[1759421036023,0.69,227.85,227.77,10.96702937]
[1759421036195,1.839577,227.81,227.7,3.5856795]
[1759421036395,0.69,227.8,227.65,13.36532641]
[1759421036601,0.69,227.79,227.66,4.48851013]
[1759421036800,23.2,227.83,227.64,31.54]
[1759421036801,0.69,227.78,227.64,31.54]
[1759421037008,0.69,227.77,227.68,20.8]
[1759421037315,0.69,227.76,227.69,31.54]
[1759421037500,0.69,227.82,227.7,11.59647521]
[1759421037691,0.69,227.82,227.79,0.14216157]
[1759421037889,0.1,227.87,227.81,31.81863678]
[1759421038217,0.69,227.86,227.84,0.14216157]
[1759421038424,0.69,227.85,227.84,0.14216157]
[1759421038796,0.69,227.85,227.82,0.14216157]
[1759421039643,0.69,227.84,227.82,0.14216157]
[1759421039943,0.69,227.83,227.82,4.53159182]
[1759421040141,0.69,227.85,227.82,15.40806703]
[1759421040348,0.1,227.87,227.82,15.40806703]
[1759421040349,0.1,227.87,227.85,0.14216157]
[1759421040649,0.1,227.87,227.84,0.14216157]
[1759421041211,0.1,227.87,227.86,31.81863678]
[1759421041420,0.1,227.87,227.86,20.94216157]
[1759421041741,0.1,227.87,227.86,0.14216157]
[1759421042116,0.8,227.87,227.86,0.14216157]
[1759421042649,0.8,227.87,227.82,10.87647521]
[1759421042857,0.7,227.86,227.82,10.87647521]
[1759421043165,0.7,227.85,227.79,4.39000834]
[1759421043454,5.11083448,227.84,227.77,10.87647521]
[1759421043746,0.7,227.83,227.8,20.8]
[1759421043953,0.7,227.82,227.8,20.8]
[1759421044132,0.7,227.81,227.77,20.8]
[1759421044329,0.7,227.8,227.77,20.8]
[1759421044642,0.1,227.87,227.74,10.87647521]
[1759421044643,0.7,227.79,227.74,10.87647521]
[1759421044938,4.48849623,227.87,227.74,10.87647521]
[1759421044939,0.7,227.78,227.74,10.87647521]
[1759421045112,0.7,227.78,227.74,31.67647521]
[1759421045313,0.7,227.82,227.73,10.87647521]
[1759421045543,0.7,227.82,227.77,10.87647521]
[1759421045724,0.7,227.81,227.77,10.87647521]
[1759421045926,0.7,227.8,227.76,20.8]
[1759421046131,4.41083448,227.77,227.65,10.98165055]
[1759421046329,4.41083448,227.85,227.66,4.39251515]
[1759421046330,0.7,227.76,227.66,4.39251515]
[1759421046521,0.7,227.75,227.68,20.8]
[1759421046943,0.7,227.75,227.69,10.87647521]
[1759421047268,0.7,227.78,227.69,10.87647521]
[1759421047458,0.7,227.78,227.72,10.87647521]
[1759421047861,0.7,227.78,227.75,0.14216157]
[1759421048062,0.7,227.77,227.7,4.39155859]
[1759421048261,15.36165729,227.84,227.7,4.39155859]
[1759421048262,0.7,227.76,227.7,25.19155859]
[1759421048464,0.7,227.75,227.7,25.19155859]
[1759421048665,0.7,227.74,227.7,25.19155859]
[1759421048860,0.7,227.73,227.7,25.19155859]
[1759421049064,0.7,227.72,227.68,10.87647521]
[1759421049267,0.7,227.71,227.61,10.87647521]
[1759421049581,4.41083448,227.69,227.6,13.18710301]
[1759421049763,4.41083448,227.69,227.58,15.3792073]
[1759421049764,4.41083448,227.71,227.61,20.8]
[1759421050082,0.7,227.68,227.59,11.01863678]
[1759421050260,0.7,227.68,227.59,15.27034137]
[1759421050460,0.7,227.67,227.59,26.25500677]
[1759421050681,0.7,227.66,227.58,10.87647521]
[1759421050995,0.7,227.65,227.58,10.87647521]
[1759421051694,0.7,227.71,227.62,10.87647521]
[1759421051872,0.7,227.71,227.63,4.53525562]
[1759421052204,0.7,227.74,227.65,0.14216157]
[1759421053680,0.7,227.74,227.67,11.01863678]
[1759421053888,0.7,227.73,227.67,11.01863678]
[1759421054087,5.11083448,227.72,227.67,0.14216157]
[1759421054401,0.7,227.72,227.67,0.14216157]
[1759421054622,0.7,227.72,227.63,20.8]
[1759421054790,4.41083448,227.69,227.61,10.87647521]
[1759421054973,0.7,227.68,227.62,10.87647521]
[1759421055170,0.7,227.67,227.58,36.29388053]
[1759421055372,0.7,227.66,227.54,11.63704772]
[1759421055592,0.7,227.65,227.57,54.39423693]
[1759421055781,0.7,227.65,227.58,10.87647521]
[1759421055983,0.7,227.65,227.59,4.39386616]
[1759421056408,0.7,227.67,227.61,0.14216157]
[1759421057083,5.11083448,227.67,227.61,0.14216157]
[1759421057282,4.41083448,227.66,227.61,0.14216157]
[1759421057700,0.7,227.65,227.61,0.14216157]
[1759421058203,0.7,227.64,227.61,0.14216157]
[1759421058373,0.7,227.63,227.61,0.14216157]
[1759421058578,0.7,227.66,227.6,0.14216157]
[1759421059183,0.7,227.66,227.6,11.01863678]
[1759421059986,0.7,227.66,227.6,15.41229534]
[1759421060880,0.7,227.66,227.6,4.53582013]
[1759421061508,4.39196758,227.69,227.6,4.53582013]
[1759421061509,0.7,227.69,227.6,4.53582013]
[1759421061674,0.7,227.69,227.61,32.32647521]
[1759421062195,0.7,227.68,227.58,10.87647521]
[1759421062408,0.7,227.68,227.57,54.39406459]
[1759421062409,6.86095241,227.62,227.57,50.0]
[1759421062579,6.86095241,227.6,227.57,50.0]
[1759421062778,0.7,227.59,227.57,50.0]
[1759421062978,0.7,227.58,227.57,50.0]
[1759421063380,7.56095241,227.58,227.57,50.0]
[1759421064378,5.09405923,227.58,227.57,50.0]
[1759421064575,7.56095241,227.58,227.57,50.0]
[1759421064776,32.6,227.58,227.57,50.0]
[1759421065000,39.46095241,227.58,227.57,50.0]
[1759421065400,43.85501164,227.58,227.57,50.0]
[1759421066831,43.85501164,227.58,227.37,35.19089493]
[1759421066832,20.8,227.51,227.38,0.67]
[1759421067031,6.86095241,227.48,227.38,0.67]
[1759421067197,6.86095241,227.47,227.38,0.67]
[1759421067528,20.8,227.55,227.38,5.06785039]
[1759421067529,0.6,227.53,227.38,5.06785039]
[1759421067697,26.25568251,227.58,227.38,5.06785039]
[1759421067698,31.94,227.51,227.4,11.01863678]
[1759421067897,31.94,227.51,227.43,11.01863678]
[1759421068196,6.86095241,227.5,227.43,0.81216157]
[1759421068410,6.86095241,227.5,227.43,20.94216157]
[1759421068610,31.94,227.51,227.43,20.94216157]
[1759421068799,6.86095241,227.51,227.44,0.67]
[1759421069205,38.82095241,227.51,227.44,0.67]
[1759421069523,12.91976299,227.52,227.44,0.67]
[1759421069524,12.91976299,227.52,227.45,20.94216157]
[1759421069720,31.94,227.55,227.47,0.14216157]
[1759421069922,38.80095241,227.55,227.47,0.14216157]
[1759421070125,6.86095241,227.51,227.42,4.53928436]
[1759421070419,6.86095241,227.5,227.41,25.86730653]
[1759421070594,6.86095241,227.51,227.42,0.81216157]
[1759421070795,0.6,227.52,227.42,0.81216157]
[1759421071094,6.86095241,227.49,227.39,10.87647521]
[1759421071291,31.96,227.48,227.4,0.7]
[1759421071521,31.96,227.49,227.41,0.14216157]
[1759421071722,6.86095241,227.45,227.36,0.2]
[1759421071904,38.82095241,227.44,227.37,0.7]
[1759421072107,31.96,227.44,227.37,0.7]
[1759421072305,43.21779538,227.44,227.36,0.2]
[1759421072529,6.86095241,227.41,227.36,0.2]
[1759421072706,0.6,227.43,227.36,0.2]
[1759421072707,6.86095241,227.38,227.36,0.2]
[1759421072899,6.86095241,227.39,227.36,0.2]
[1759421073094,6.86095241,227.38,227.36,0.2]
[1759421073299,7.46095241,227.38,227.36,0.2]
[1759421073501,32.6,227.37,227.36,0.2]
[1759421073700,32.0,227.37,227.36,0.2]
[1759421074153,36.9981176,227.37,227.36,0.2]
[1759421075200,43.85907001,227.37,227.36,0.2]
[1759421075618,36.9981176,227.37,227.36,0.2]
[1759421075816,43.85907001,227.37,227.36,0.2]
[1759421076204,43.85907001,227.37,227.35,1e-08]
[1759421076406,11.01863678,227.36,227.35,1e-08]
[1759421076856,11.61863678,227.36,227.35,1e-08]
[1759421077531,11.61863678,227.36,227.22,0.2]
[1759421077532,20.8,227.26,227.22,0.2]
[1759421077839,20.14216157,227.29,227.22,0.2]
[1759421077840,32.02,227.25,227.22,0.2]
[1759421078022,6.86095241,227.23,227.22,0.2]
[1759421078213,11.26177976,227.23,227.22,0.2]
[1759421078412,22.76384814,227.23,227.11,0.7]
[1759421078735,15.90289573,227.23,227.08,0.7]
[1759421078928,21.2,227.26,227.14,0.7]
[1759421079141,32.02,227.25,227.14,0.7]
[1759421079632,6.86095241,227.2,227.14,0.7]
[1759421079832,32.02,227.19,227.14,0.7]
[1759421080229,6.86095241,227.18,227.13,0.2]
[1759421080405,36.42164204,227.19,227.13,0.2]
[1759421080727,32.0,227.18,227.14,0.7]
[1759421080905,32.0,227.17,227.15,0.7]
[1759421081108,32.0,227.17,227.13,0.2]
[1759421081319,38.86095241,227.17,227.13,0.9]
[1759421081508,32.0,227.17,227.13,0.9]
[1759421081711,32.0,227.17,227.13,0.2]
[1759421081929,32.4,227.17,227.13,0.2]
[1759421082110,6.86095241,227.14,227.13,0.2]
[1759421082430,4.4025711,227.14,227.13,0.2]
[1759421082635,0.4,227.16,227.13,0.2]
[1759421082636,4.80233032,227.16,227.13,0.2]
[1759421082948,6.86095241,227.14,227.13,0.2]
[1759421083131,4.80121473,227.21,227.13,0.2]
[1759421083303,6.86095241,227.18,227.13,0.2]
[1759421083624,4.40097864,227.23,227.13,0.2]
[1759421083831,52.8,227.22,227.13,0.2]
[1759421084046,6.86095241,227.18,227.13,0.2]
[1759421084247,20.0,227.3,227.14,0.7]
[1759421084407,0.4,227.28,227.15,0.14216157]
[1759421084609,6.86095241,227.25,227.16,0.7]
[1759421085141,20.3145165,227.25,227.16,21.5]
[1759421085310,6.86095241,227.23,227.16,21.5]
[1759421085511,0.4,227.28,227.16,0.7]
[1759421085512,32.0,227.22,227.16,0.7]
[1759421085717,0.4,227.28,227.16,0.7]
[1759421085718,31.98,227.21,227.16,0.7]
[1759421085925,31.98,227.2,227.16,0.7]
[1759421086242,0.4,227.29,227.18,0.14216157]
[1759421086412,37.46095241,227.28,227.19,0.7]
[1759421086839,37.46095241,227.28,227.2,20.8]
[1759421087017,32.0,227.27,227.21,0.7]
[1759421087341,32.0,227.26,227.21,0.7]
[1759421087550,13.45702334,227.37,227.22,11.01863678]
[1759421087725,0.4,227.38,227.22,11.01863678]
[1759421087726,20.08,227.36,227.27,20.8]
[1759421087915,6.86095241,227.35,227.28,0.7]
[1759421088407,0.4,227.38,227.29,4.54182719]
[1759421088408,32.1,227.34,227.29,4.54182719]
[1759421088608,32.1,227.34,227.29,0.7]
[1759421088838,32.1,227.34,227.3,0.7]
[1759421089544,32.1,227.34,227.31,0.7]
[1759421089748,6.86095241,227.36,227.25,4.4002675]
[1759421089929,32.08,227.35,227.27,21.5]
[1759421090121,13.82197465,227.38,227.27,21.5]
[1759421090122,38.94095241,227.34,227.27,21.5]
[1759421090435,32.08,227.34,227.27,0.7]
[1759421090634,32.08,227.33,227.27,0.7]
[1759421090849,32.06,227.33,227.28,0.14216157]
[1759421091026,6.86095241,227.37,227.29,0.7]
[1759421091226,6.86095241,227.38,227.29,0.7]
[1759421091427,32.06,227.37,227.3,20.94216157]
[1759421091620,32.06,227.37,227.31,0.7]
[1759421092226,25.59713899,227.43,227.31,0.7]
[1759421092439,32.08,227.42,227.34,0.14216157]
[1759421092638,32.48,227.42,227.32,20.8]
[1759421092839,6.86095241,227.39,227.32,25.19906611]
[1759421093137,6.86095241,227.39,227.32,25.89906611]
[1759421093315,4.39713899,227.43,227.32,25.89906611]
[1759421093316,32.06,227.41,227.33,0.84216157]
[1759421093516,12.89753362,227.46,227.37,20.8]
[1759421093716,32.06,227.45,227.37,21.5]
[1759421094117,6.86095241,227.46,227.38,0.14216157]
[1759421094343,21.96716851,227.62,227.4,4.39753737]
[1759421094525,7.26095241,227.51,227.41,0.84216157]
[1759421094728,32.06,227.5,227.41,0.84216157]
[1759421094945,4.79501941,227.54,227.44,0.14216157]
[1759421095255,6.86095241,227.5,227.43,20.8]
[1759421095460,0.4,227.49,227.37,20.94216157]
[1759421095666,6.86095241,227.43,227.37,20.8]
[1759421095951,6.86095241,227.43,227.37,0.14216157]
[1759421096159,32.08,227.44,227.36,0.7]
[1759421096337,6.86095241,227.43,227.36,5.09828593]
[1759421096723,38.94095241,227.44,227.37,0.14216157]
[1759421096927,32.08,227.43,227.39,0.14216157]
[1759421097240,0.4,227.48,227.4,21.5]
[1759421097552,32.08,227.47,227.4,21.5]
[1759421098026,32.08,227.46,227.4,21.5]
[1759421098347,6.86095241,227.42,227.31,0.7]
[1759421098553,6.86095241,227.4,227.31,0.7]
[1759421098733,32.1,227.39,227.32,20.8]
[1759421099140,32.1,227.4,227.34,20.8]
[1759421099373,11.25799001,227.43,227.35,0.7]
[1759421099652,32.5,227.42,227.32,0.7]
[1759421099826,6.86095241,227.39,227.32,0.7]
[1759421100024,32.12,227.4,227.32,0.7]
[1759421100424,4.39773077,227.39,227.29,5.09960869]
[1759421100749,0.4,227.38,227.27,0.7]
[1759421100959,6.86095241,227.35,227.27,0.7]
[1759421101125,0.4,227.37,227.27,0.7]
[1759421101126,32.1,227.34,227.27,0.7]
[1759421101641,0.4,227.33,227.22,0.66]
[1759421101846,6.86095241,227.3,227.21,10.87647521]
[1759421102054,6.86095241,227.29,227.2,0.66]
[1759421102363,38.98095241,227.29,227.2,0.66]
[1759421102537,4.3998592,227.28,227.2,0.66]
[1759421102857,32.12,227.29,227.2,0.66]
[1759421103063,0.4,227.34,227.21,31.67647521]
[1759421103265,0.4,227.34,227.22,0.80216157]
[1759421103570,6.86095241,227.32,227.22,0.80216157]
[1759421103770,0.4,227.31,227.18,0.66]
[1759421103969,4.39924514,227.32,227.18,0.66]
[1759421103970,6.86095241,227.25,227.18,0.66]
[1759421104279,32.12,227.25,227.18,0.66]
[1759421104650,36.52048517,227.25,227.18,0.66]
[1759421104855,6.86095241,227.22,227.13,0.2]
[1759421105052,6.86095241,227.2,227.13,0.2]
[1759421105373,6.86095241,227.18,227.13,0.2]
[1759421105670,32.14,227.19,227.13,0.2]
[1759421105880,0.4,227.18,227.13,0.2]
[1759421106042,32.14,227.18,227.14,0.66]
[1759421106240,32.14,227.18,227.13,0.2]
[1759421106241,0.4,227.27,227.17,11.01863678]
[1759421106557,32.14,227.27,227.19,4.54374247]
[1759421106737,32.14,227.27,227.18,0.66]
[1759421106738,36.54008795,227.27,227.18,0.66]
[1759421106938,6.86095241,227.24,227.17,20.8]
[1759421107153,0.4,227.23,227.14,0.14216157]
[1759421107364,0.4,227.28,227.16,31.81863678]
[1759421107560,43.42058613,227.3,227.19,20.8]
[1759421107735,0.4,227.29,227.19,21.46]
[1759421107939,6.86095241,227.26,227.19,0.66]
[1759421108139,7.26095241,227.26,227.17,0.14216157]
[1759421108552,6.86095241,227.24,227.17,0.14216157]
[1759421108762,43.48175999,227.24,227.17,20.94216157]
[1759421108943,43.48175999,227.24,227.17,0.14216157]
[1759421109138,6.86095241,227.22,227.15,0.66]
[1759421109344,6.86095241,227.22,227.13,11.07647521]
[1759421109345,0.4,227.22,227.13,0.2]
[1759421109939,6.86095241,227.21,227.13,0.2]
[1759421110160,6.86095241,227.2,227.13,0.2]
[1759421110344,6.86095241,227.18,227.13,0.2]
[1759421110671,4.40237728,227.15,227.13,0.2]
[1759421111076,4.80237728,227.15,227.13,0.2]
[1759421111278,6.86095241,227.14,227.13,0.2]
[1759421111585,7.26095241,227.14,227.13,0.2]
[1759421112168,21.2,227.14,227.13,0.2]
[1759421112354,60.30095241,227.14,227.13,0.2]
[1759421114068,60.32095241,227.14,227.13,0.2]
[1759421114419,15.40967727,227.13,226.99,0.2]
[1759421114570,10.87647521,227.12,226.99,0.86]
[1759421114751,6.86095241,227.05,227.0,20.8]
[1759421114948,32.28,227.04,227.0,20.8]
[1759421115260,32.28,227.04,226.99,0.2]
[1759421115853,32.28,227.04,227.0,0.66]
[1759421116053,6.86095241,227.06,227.01,0.66]
[1759421116376,32.28,227.05,226.99,0.2]
[1759421116581,4.40415308,227.06,226.99,0.2]
[1759421116755,32.28,227.04,226.99,0.2]
[1759421116950,10.87647521,227.12,227.01,0.14216157]
[1759421116951,32.28,227.07,227.01,0.14216157]
[1759421117162,32.28,227.07,227.02,0.66]
[1759421117352,32.28,227.08,227.03,0.66]
[1759421117557,6.86095241,227.11,227.04,0.66]
[1759421117773,32.28,227.1,227.04,0.66]
[1759421118072,6.86095241,227.13,227.04,0.66]
[1759421118280,6.86095241,227.11,227.04,0.66]
[1759421118581,6.86095241,227.1,227.02,21.46]
[1759421118887,4.40354044,227.09,227.03,20.8]
[1759421119072,11.26449285,227.09,227.02,0.66]
[1759421119267,4.40354044,227.09,227.0,0.14216157]
[1759421119465,4.40354044,227.09,226.99,5.26546238]
[1759421119664,6.86095241,227.05,226.99,0.2]
[1759421119867,32.26,227.04,226.99,0.2]
[1759421120076,6.86095241,227.03,226.99,0.2]
[1759421120381,37.10592998,227.04,226.99,0.2]
[1759421120589,0.4,227.03,226.99,0.2]
[1759421120772,4.44592998,227.02,226.99,0.2]
[1759421120964,8.8509123,227.02,226.99,0.2]
[1759421121390,4.44592998,227.02,226.99,0.2]
[1759421121565,9.25085634,227.02,226.99,0.2]
[1759421121930,4.44592998,227.0,226.99,0.2]
[1759421122286,4.84592998,227.0,226.99,0.2]
[1759421122464,4.40492636,227.02,226.99,0.2]
[1759421122665,32.24,227.01,226.99,0.86]
[1759421122868,32.26,227.04,227.0,0.66]
[1759421123084,32.3,227.06,227.0,0.66]
[1759421123376,30.8,227.06,227.01,0.66]
[1759421123586,32.3,227.08,227.02,0.71]
[1759421124001,4.44592998,227.05,226.99,0.2]
[1759421124793,4.44592998,227.06,226.99,0.2]
[1759421125086,8.85006724,227.06,226.99,4.60545109]
[1759421125278,41.14979557,227.08,227.0,0.71]
[1759421125662,4.44592998,227.06,226.99,0.2]
[1759421126281,4.40386559,227.08,227.0,21.51]
[1759421126484,32.32,227.1,227.01,32.52863678]
[1759421126683,4.44592998,227.08,227.01,20.8]
[1759421126868,4.44592998,227.08,227.0,0.71]
[1759421127078,8.84979814,227.08,227.0,21.51]
[1759421127391,8.84979814,227.08,227.0,0.71]
[1759421127688,36.72354445,227.09,227.0,25.91519229]
[1759421128091,4.44592998,227.08,227.0,21.51]
[1759421128293,0.4,227.08,226.99,0.2]
[1759421128485,4.44592998,227.07,227.0,0.71]
[1759421129203,4.40412225,227.06,226.99,0.2]
[1759421129492,8.8498788,227.07,226.99,5.31547559]
[1759421129987,8.8498788,227.07,226.99,0.2]
[1759421130191,4.44592998,227.05,226.99,0.2]
[1759421130395,4.40394882,227.07,226.99,0.91]
[1759421130594,32.32,227.09,226.99,0.91]
[1759421130595,32.3,227.06,227.0,20.8]
[1759421130995,32.3,227.09,227.03,0.14216157]
[1759421131179,32.3,227.09,227.03,0.85216157]